bitfinex/quotes_SOLUSD_20250307
["timestamp","ask_amount","ask_price","bid_price","bid_amount"]
[1741337030405,4.11899591,143.76,143.72,7.09966157]
[1741337031794,4.11899591,143.75,143.72,7.09966157]
[1741337033198,4.11899591,143.74,143.72,7.09966157]
[1741337034517,6.9551,143.78,143.72,7.09966157]
[1741337035424,0.03,143.75,143.72,7.09966157]
[1741337037224,4.11780582,143.74,143.72,7.09966157]
[1741337038334,4.11780582,143.73,143.72,7.09966157]
[1741337042228,4.11780582,143.73,143.72,21.23868944]
[1741337042611,4.11780582,143.74,143.72,21.23868944]
[1741337042935,4.11780582,143.74,143.73,14.28118944]
[1741337043319,4.11780582,143.74,143.73,0.14216157]
[1741337043611,5.82e-06,143.74,143.73,96.38118944]
[1741337043933,5.82e-06,143.74,143.73,116.73309987]
[1741337044103,0.03,143.75,143.74,7.09916157]
[1741337044305,0.03,143.75,143.74,27.43818944]
[1741337046329,0.03,143.75,143.74,13.157]
[1741337046833,0.03,143.75,143.74,13.29916157]
[1741337047129,0.03,143.75,143.74,27.43818944]
[1741337047934,0.03,143.75,143.74,13.29916157]
[1741337052136,0.03,143.75,143.74,27.43818944]
[1741337052542,0.03,143.75,143.74,13.29916157]
[1741337058625,0.03,143.75,143.74,325.29916157]
[1741337059427,0.03,143.75,143.74,13.29916157]
[1741337060617,0.03,143.75,143.74,13.33216157]
[1741337062448,0.03,143.75,143.74,325.33216157]
[1741337062633,0.03,143.75,143.74,13.33216157]
[1741337065627,0.03,143.75,143.74,325.33216157]
[1741337068556,0.03,143.75,143.74,13.33216157]
[1741337071351,0.03,143.75,143.74,27.47118944]
[1741337071529,0.03,143.75,143.74,358.26299987]
[1741337071729,0.03,143.75,143.74,440.36299987]
[1741337072957,0.03,143.75,143.74,426.223972]
[1741337073140,0.03,143.75,143.74,440.36299987]
[1741337073453,0.03,143.75,143.74,407.43216157]
[1741337077547,0.03,143.75,143.74,95.43216157]
[1741337078149,0.03,143.78,143.74,109.57118944]
[1741337078447,0.03,143.78,143.75,0.14216157]
[1741337079240,0.03,143.78,143.75,14.28118944]
[1741337079830,0.03,143.78,143.77,0.14216157]
[1741337080032,0.03,143.78,143.77,14.28118944]
[1741337080545,0.03,143.78,143.77,312.14216157]
[1741337081029,0.03,143.78,143.77,14.28118944]
[1741337081859,0.03,143.78,143.77,21.23668944]
[1741337083742,0.03,143.78,143.77,103.33668944]
[1741337084161,1.5538,143.85,143.77,451.51729987]
[1741337084355,1.5538,143.85,143.79,0.14216157]
[1741337084552,1.5538,143.85,143.81,0.14216157]
[1741337086265,1.5538,143.85,143.81,7.09546157]
[1741337088873,0.03,143.85,143.81,7.09546157]
[1741337089375,0.03,143.85,143.81,21.23448944]
[1741337089670,0.03,143.85,143.81,7.09546157]
[1741337091371,0.03,143.85,143.81,38.61848944]
[1741337091874,0.03,143.85,143.84,0.14216157]
[1741337092549,0.03,143.85,143.84,7.09426157]
[1741337093972,0.03,143.85,143.84,41.23328944]
[1741337094150,0.03,143.85,143.84,353.23328944]
[1741337097879,0.03,143.85,143.84,339.09426157]
[1741337098268,0.03,143.85,143.84,27.09426157]
[1741337098780,0.03,143.85,143.84,33.27426157]
[1741337099572,0.03,143.85,143.84,6.32216157]
[1741337100152,0.03,143.85,143.81,6.9534]
[1741337100470,0.03,143.85,143.82,0.14216157]
[1741337100880,0.03,143.85,143.81,13.1334]
[1741337101179,0.03,143.85,143.82,0.14216157]
[1741337101564,0.03,143.85,143.82,14.28118944]
[1741337101767,0.03,143.85,143.84,0.14216157]
[1741337103665,0.03,143.85,143.82,82.1]
[1741337103879,1.6609,143.85,143.78,0.033]
[1741337104075,1.6609,143.85,143.78,6.213]
[1741337104287,1.6609,143.85,143.79,0.14216157]
[1741337104485,1.6609,143.85,143.79,96.38118944]
[1741337104866,1.6609,143.85,143.79,82.24216157]
[1741337105176,1.6609,143.85,143.79,394.24216157]
[1741337105786,1.6609,143.85,143.81,0.14216157]
[1741337105952,8.6126,143.85,143.81,0.14216157]
[1741337106350,8.6126,143.85,143.78,6.9879]
[1741337106351,90.6126,143.85,143.78,6.9879]
[1741337106591,83.6609,143.85,143.79,0.14216157]
[1741337107252,1.6609,143.85,143.79,33.07299987]
[1741337107566,1.6609,143.85,143.81,0.14216157]
[1741337107761,1.6609,143.85,143.83,0.14216157]
[1741337109474,1.6609,143.85,143.81,0.14216157]
[1741337110381,8.6126,143.85,143.81,0.14216157]
[1741337110972,1.6609,143.85,143.81,0.14216157]
[1741337111171,0.03,143.85,143.81,0.14216157]
[1741337111878,0.03,143.85,143.83,0.14216157]
[1741337112780,0.03,143.85,143.83,82.24216157]
[1741337112986,0.03,143.85,143.84,6.32216157]
[1741337113175,0.03,143.85,143.84,102.56118944]
[1741337113569,0.03,143.85,143.84,121.35299987]
[1741337114201,0.03,143.85,143.84,440.30509987]
[1741337115294,0.03,143.85,143.84,407.37426157]
[1741337115959,0.0001,143.85,143.84,407.37426157]
[1741337116498,0.0001,143.85,143.84,421.51328944]
[1741337120392,0.0001,143.85,143.84,440.30509987]
[1741337122562,0.0001,143.87,143.86,20.14216157]
[1741337122902,0.0001,143.87,143.86,34.28118944]
[1741337123497,0.0001,143.87,143.86,116.38118944]
[1741337125194,0.0001,143.87,143.86,123.33238944]
[1741337125366,0.0001,143.87,143.86,142.12419987]
[1741337125568,0.0001,143.87,143.86,454.12419987]
[1741337126268,0.03,143.9,143.87,0.14216157]
[1741337126482,0.03,143.9,143.89,14.28118944]
[1741337126678,0.03,143.9,143.89,20.46118944]
[1741337126878,0.03,143.9,143.89,27.41088944]
[1741337127191,0.0001,143.9,143.89,27.41088944]
[1741337127688,0.0001,143.9,143.89,13.27186157]
[1741337129477,0.0001,143.9,143.88,6.95]
[1741337129683,0.0001,143.9,143.88,13.13]
[1741337129899,0.0001,143.9,143.89,0.14216157]
[1741337131210,0.0001,143.9,143.89,7.09186157]
[1741337131779,15.30474767,143.9,143.89,0.14216157]
[1741337131995,0.0001,143.9,143.87,0.14216157]
[1741337132415,0.0001,143.9,143.86,6.18]
[1741337132892,31.64488214,143.9,143.87,0.14216157]
[1741337133406,0.0001,143.9,143.87,0.14216157]
[1741337133618,0.0001,143.9,143.86,6.18]
[1741337133619,6.9494,143.9,143.85,6.18]
[1741337133781,88.9494,143.9,143.86,0.14216157]
[1741337134184,88.9494,143.9,143.85,0.14216157]
[1741337135622,82.0001,143.9,143.84,0.17516157]
[1741337135912,8.5573,143.91,143.86,0.14216157]
[1741337136619,0.03,143.9,143.86,0.14216157]
[1741337136911,0.03,143.9,143.85,0.17516157]
[1741337137087,0.03,143.9,143.87,0.14216157]
[1741337138124,0.03,143.9,143.89,0.14216157]
[1741337141211,0.03,143.9,143.85,88.313]
[1741337141412,0.03,143.9,143.86,0.14216157]
[1741337143803,88.3025,143.92,143.86,0.14216157]
[1741337145218,6.9488,143.91,143.86,0.14216157]
[1741337146842,8.606,143.91,143.86,0.14216157]
[1741337147044,8.606,143.91,143.85,0.033]
[1741337147045,82.0,143.9,143.85,0.033]
[1741337148114,6.9497,143.89,143.85,0.033]
[1741337149147,6.9497,143.89,143.86,0.033]
[1741337150648,49.20827564,143.88,143.86,0.033]
[1741337150842,56.15857564,143.88,143.86,0.033]
[1741337151044,6.9503,143.88,143.86,0.033]
[1741337151434,108.92121043,143.87,143.86,0.033]
[1741337151635,100.92121043,143.87,143.86,0.033]
[1741337152749,107.87191043,143.87,143.86,0.033]
[1741337153136,18.79181043,143.86,143.85,0.033]
[1741337154353,82.1294,143.87,143.85,0.033]
[1741337154926,82.0,143.86,143.85,0.033]
[1741337157942,82.0,143.9,143.85,0.033]
[1741337160363,88.9494,143.9,143.86,0.14216157]
[1741337162564,82.0,143.9,143.86,0.14216157]
[1741337162856,1.5609,143.91,143.86,7.09326157]
[1741337163064,0.03,143.91,143.86,7.09326157]
[1741337164332,0.03,143.91,143.86,38.61028944]
[1741337164535,0.03,143.91,143.88,0.14216157]
[1741337165566,0.03,143.91,143.88,96.38118944]
[1741337165866,0.03,143.91,143.9,0.14216157]
[1741337166035,0.03,143.91,143.9,6.32216157]
[1741337166230,0.03,143.91,143.9,318.32216157]
[1741337166453,81.96,143.96,143.9,318.32216157]
[1741337166771,75.57707975,143.96,143.9,318.32216157]
[1741337167653,82.52347975,143.96,143.9,325.27126157]
[1741337167968,82.52347975,143.96,143.9,318.32216157]
[1741337169147,82.52347975,143.96,143.9,325.27126157]
[1741337170271,82.52347975,143.96,143.89,0.14216157]
[1741337170569,99.88937975,143.96,143.89,0.14216157]
[1741337170945,18.79181043,143.94,143.87,82.1]
[1741337171148,94.36889018,143.94,143.86,13.1311]
[1741337171483,20.29271043,143.92,143.85,0.033]
[1741337172176,25.03193979,143.91,143.85,0.033]
[1741337172357,82.52627975,143.9,143.85,0.033]
[1741337172548,18.79181043,143.89,143.85,0.033]
[1741337172882,18.79181043,143.87,143.85,0.033]
[1741337173051,94.36889018,143.86,143.85,0.033]
[1741337173252,100.48189018,143.86,143.85,0.033]
[1741337173468,24.90481043,143.86,143.85,0.033]
[1741337173781,20.40481043,143.85,143.84,0.033]
[1741337174359,27.35641043,143.85,143.84,0.033]
[1741337174656,27.35641043,143.85,143.78,0.033]
[1741337174858,82.0,143.84,143.78,0.033]
[1741337175066,18.79181043,143.83,143.78,0.033]
[1741337175257,43.82375022,143.83,143.78,0.033]
[1741337175478,18.79181043,143.83,143.78,0.033]
[1741337175852,25.03193979,143.82,143.78,0.033]
[1741337176056,82.0,143.82,143.78,0.033]
[1741337176486,107.03193979,143.82,143.78,0.033]
[1741337176789,82.0,143.82,143.78,0.033]
[1741337177472,88.9532,143.82,143.78,0.033]
[1741337178352,113.98513979,143.82,143.78,0.033]
[1741337178584,88.9532,143.82,143.78,0.033]
[1741337179086,82.0,143.81,143.78,0.033]
[1741337180063,22.9935546,143.8,143.78,0.033]
[1741337180360,6.9541,143.8,143.78,0.033]
[1741337180566,82.0,143.81,143.78,0.033]
[1741337181773,101.91419488,143.81,143.78,0.033]
[1741337181961,108.86789488,143.81,143.78,0.033]
[1741337182290,88.9537,143.81,143.78,0.033]
[1741337182668,16.98093625,143.8,143.78,0.033]
[1741337183091,169.09181043,143.79,143.78,0.033]
[1741337183293,18.79181043,143.77,143.74,0.033]
[1741337183477,82.0,143.76,143.74,0.033]
[1741337183684,97.84882356,143.76,143.74,0.033]
[1741337183887,82.0,143.76,143.74,0.033]
[1741337184087,6.9565,143.75,143.74,0.033]
[1741337184579,19.33676356,143.75,143.74,0.033]
[1741337184786,18.79181043,143.7,143.66,0.033]
[1741337185008,150.3,143.69,143.62,0.033]
[1741337185304,150.3,143.68,143.62,0.033]
[1741337185508,150.3,143.68,143.62,319.13796157]
[1741337185682,82.0,143.7,143.63,6.9952]
[1741337185884,82.0,143.7,143.64,0.14216157]
[1741337186084,18.56035367,143.67,143.63,0.033]
[1741337186284,82.0,143.7,143.65,0.14216157]
[1741337186693,82.0,143.7,143.67,0.14216157]
[1741337186895,150.3,143.73,143.67,0.14216157]
[1741337187103,82.0,143.73,143.67,0.14216157]
[1741337187592,82.0,143.73,143.67,22.20814367]
[1741337187793,100.56035367,143.76,143.67,104.30814367]
[1741337188113,100.56035367,143.76,143.7,6.9589]
[1741337188610,82.0,143.76,143.68,7.10156157]
[1741337189385,9.52684541,143.75,143.71,0.14216157]
[1741337189789,82.0,143.76,143.71,0.14216157]
[1741337191485,82.0,143.76,143.68,0.14216157]
[1741337192104,82.0,143.76,143.68,7.10156157]
[1741337192304,82.0,143.76,143.68,46.56724367]
[1741337192483,82.0,143.78,143.7,0.14216157]
[1741337192681,82.0,143.78,143.72,0.14216157]
[1741337193300,82.0,143.8,143.72,0.14216157]
[1741337194330,82.0,143.8,143.74,0.14216157]
[1741337195420,82.0,143.8,143.72,7.10006157]
[1741337196513,88.9541,143.8,143.72,89.20006157]
[1741337197513,88.9541,143.8,143.72,401.20006157]
[1741337197690,82.0,143.8,143.73,1.5656]
[1741337197892,82.0,143.8,143.74,0.14216157]
[1741337198616,82.03,143.8,143.74,6.16166157]
[1741337199116,82.03,143.8,143.74,110.32764367]
[1741337199117,0.03,143.8,143.74,110.32764367]
[1741337199711,0.03,143.8,143.76,0.14216157]
[1741337200022,0.03,143.8,143.76,28.38814367]
[1741337200513,0.03,143.8,143.77,22.0659821]
[1741337200816,0.03,143.8,143.78,0.14216157]
[1741337201209,0.03,143.8,143.77,0.14216157]
[1741337201921,0.03,143.8,143.78,6.955]
[1741337202114,0.03,143.8,143.78,318.955]
[1741337203113,0.03,143.8,143.79,7.09666157]
[1741337203321,0.03,143.8,143.79,0.14216157]
[1741337203624,0.03,143.8,143.79,7.09666157]
[1741337203825,0.03,143.8,143.79,0.14216157]
[1741337205219,0.03,143.8,143.79,7.09666157]
[1741337205398,0.03,143.8,143.79,0.14216157]
[1741337205593,0.03,143.8,143.79,7.09666157]
[1741337207227,0.03,143.8,143.79,131.6635541]
[1741337209723,0.03,143.84,143.83,20.14216157]
[1741337209912,0.03,143.84,143.83,48.38814367]
[1741337210220,0.03,143.84,143.83,461.2799541]
[1741337210422,95.1421,143.93,143.83,461.2799541]
[1741337210721,82.0,143.93,143.85,22.20814367]
[1741337211317,82.0,143.93,143.87,0.14216157]
[1741337211505,6.9474,143.94,143.87,0.14216157]
[1741337212021,82.03,143.95,143.89,0.14216157]
[1741337213820,82.03,143.95,143.89,312.14216157]
[1741337214001,88.9769,143.95,143.89,312.14216157]
[1741337216123,88.9769,143.95,143.89,0.14216157]
[1741337220647,82.54952694,143.95,143.89,0.14216157]
[1741337221023,0.14216157,143.94,143.89,0.14216157]
[1741337221226,18.79181043,143.94,143.89,0.14216157]
[1741337221455,75.60262694,143.93,143.87,0.14216157]
[1741337223140,82.55082694,143.93,143.87,0.14216157]
[1741337224241,82.55082694,143.93,143.87,7.09286157]
[1741337224443,0.03,143.95,143.87,89.19286157]
[1741337224643,6.9773,143.95,143.89,0.14216157]
[1741337225857,6.9773,143.95,143.88,0.14216157]
[1741337226244,22.3123444,143.95,143.88,0.14216157]
[1741337226430,6.9773,143.95,143.88,0.14216157]
[1741337226635,6.9773,143.95,143.88,7.09226157]
[1741337226953,6.9773,143.95,143.86,8.5602]
[1741337226954,75.74478851,143.94,143.86,8.5602]
[1741337227151,75.74478851,143.94,143.86,1.6091]
[1741337227453,75.74478851,143.94,143.87,0.14216157]
[1741337228552,6.9478,143.93,143.87,7.09276157]
[1741337229258,0.03,143.95,143.87,111.25874367]
[1741337229667,0.03,143.95,143.89,0.14216157]
[1741337230466,0.03,143.95,143.91,0.14216157]
[1741337231134,0.03,143.95,143.9,0.14216157]
[1741337231751,0.03,143.95,143.89,0.14216157]
[1741337233245,23.47758331,143.95,143.89,0.14216157]
[1741337233444,0.03,143.95,143.89,0.14216157]
[1741337233958,94.42443737,143.95,143.86,8.5601]
[1741337234142,75.60262694,143.94,143.86,7.7891]
[1741337234343,75.60262694,143.94,143.87,0.14216157]
[1741337234565,6.9478,143.93,143.87,0.14216157]
[1741337234877,6.9478,143.93,143.88,0.033]
[1741337238079,82.55042694,143.93,143.88,0.033]
[1741337239470,75.60262694,143.93,143.88,0.033]
[1741337239875,75.60262694,143.93,143.89,0.14216157]
[1741337240052,145.17972694,143.95,143.89,0.14216157]
[1741337242071,145.17972694,143.95,143.88,0.17516157]
[1741337243072,145.17972694,143.95,143.88,0.033]
[1741337243277,145.17972694,143.95,143.89,0.14216157]
[1741337244175,82.57972694,143.95,143.88,0.17516157]
[1741337244471,82.57972694,143.95,143.88,6.9832]
[1741337244661,82.57972694,143.95,143.89,0.14216157]
[1741337245764,75.63262694,143.95,143.89,0.14216157]
[1741337246367,75.63262694,143.95,143.91,0.14216157]
[1741337248756,75.63262694,143.95,143.91,312.14216157]
[1741337249077,75.63262694,143.95,143.91,318.32216157]
[1741337250082,0.03,143.95,143.91,325.27056157]
[1741337251166,0.03,143.95,143.91,347.33654367]
[1741337251568,0.03,143.95,143.91,364.70844367]
[1741337252079,0.03,143.96,143.91,364.70844367]
[1741337252284,0.03,143.96,143.91,446.80844367]
[1741337253386,0.03,143.96,143.91,134.80844367]
[1741337253982,0.03,143.96,143.93,0.14216157]
[1741337254180,0.03,143.96,143.93,1.71496157]
[1741337254396,0.03,143.96,143.93,23.78094367]
[1741337255788,0.03,143.96,143.95,0.14216157]
[1741337255981,0.03,143.96,143.95,124.30814367]
[1741337256288,0.03,143.96,143.95,443.25494367]
[1741337257088,0.0001,143.96,143.95,468.3945541]
[1741337257282,0.03,143.98,143.97,1.73516157]
[1741337257495,0.03,143.98,143.97,130.73079253]
[1741337258197,0.03,143.98,143.97,137.67659253]
[1741337260274,0.03,143.98,143.97,449.67659253]
[1741337263780,0.03,144.05,144.0,0.14216157]
[1741337264466,70.644,144.09,144.0,0.14216157]
[1741337264867,35.09793854,144.07,144.0,0.14216157]
[1741337265100,70.644,144.09,144.0,0.14216157]
[1741337265288,70.644,144.09,144.0,7.08646157]
[1741337265471,42.86191625,144.07,144.0,7.08646157]
[1741337265672,70.644,144.09,144.0,7.08646157]
[1741337266203,6.9418,144.06,144.0,7.08646157]
[1741337266974,39.01545382,144.06,144.0,7.08646157]
[1741337267184,39.01545382,144.06,144.0,319.08646157]
[1741337267384,6.941,144.07,144.0,319.08646157]
[1741337267700,32.07365382,144.06,144.0,319.08646157]
[1741337268102,6.941,144.07,144.0,319.08646157]
[1741337268408,39.01465382,144.07,144.0,319.08646157]
[1741337268708,6.941,144.07,144.0,319.08646157]
[1741337269208,40.67231615,144.06,144.0,319.08646157]
[1741337269389,75.60262694,144.08,144.0,319.08646157]
[1741337269587,29.04600991,144.05,144.0,341.15244367]
[1741337269801,75.60262694,144.08,144.0,423.25244367]
[1741337270320,108.13591329,144.21,144.14,0.14216157]
[1741337270525,108.13591329,144.21,144.17,0.14216157]
[1741337271013,65.37705026,144.2,144.16,0.14216157]
[1741337273196,65.37705026,144.2,144.16,312.14216157]
[1741337273809,65.37705026,144.2,144.11,18.64964886]
[1741337273810,18.64964886,144.19,144.07,6.26]
[1741337274020,0.14216157,144.18,144.08,22.0659821]
[1741337274324,0.14216157,144.18,144.09,0.14216157]
[1741337274620,0.14216157,144.18,144.07,28.3259821]
[1741337274823,18.64964886,144.17,144.07,28.3259821]
[1741337275018,18.64964886,144.17,144.08,0.14216157]
[1741337275320,75.60262694,144.16,144.07,88.36]
[1741337275689,75.60262694,144.16,144.08,0.14216157]
[1741337276522,75.60262694,144.16,144.08,22.20814367]
[1741337276721,75.60262694,144.16,144.08,0.14216157]
[1741337276891,75.60262694,144.16,144.08,312.14216157]
[1741337277597,75.60262694,144.16,144.1,22.20814367]
[1741337277803,75.60262694,144.16,144.11,0.14216157]
[1741337278635,75.60262694,144.16,144.1,0.14216157]
[1741337279201,75.60262694,144.16,144.09,0.14216157]
[1741337280098,75.60262694,144.16,144.09,22.20814367]
[1741337281607,75.60262694,144.16,144.09,312.14216157]
[1741337282321,82.53942694,144.16,144.09,312.14216157]
[1741337282701,75.63262694,144.16,144.09,312.14216157]
[1741337282895,82.56932694,144.16,144.09,312.14216157]
[1741337283313,82.56932694,144.16,144.09,0.14216157]
[1741337284009,75.63262694,144.16,144.09,22.20814367]
[1741337284401,82.56932694,144.16,144.09,0.14216157]
[1741337285320,75.63262694,144.16,144.09,0.14216157]
[1741337285524,82.56932694,144.16,144.09,0.14216157]
[1741337285699,75.60262694,144.15,144.08,0.14216157]
[1741337285898,75.60262694,144.15,144.1,22.0659821]
[1741337286118,75.60262694,144.15,144.11,28.48814367]
[1741337286620,0.03,144.16,144.13,0.14216157]
[1741337287521,0.03,144.16,144.11,110.4459821]
[1741337287724,0.03,144.16,144.12,22.20814367]
[1741337288092,0.03,144.16,144.12,0.14216157]
[1741337288596,75.60262694,144.15,144.06,118.1508821]
[1741337288816,75.60262694,144.15,144.07,0.14216157]
[1741337289018,75.60262694,144.15,144.06,118.1508821]
[1741337289215,75.60262694,144.15,144.06,82.1]
[1741337289442,75.60262694,144.15,144.07,0.14216157]
[1741337289725,6.9376,144.14,144.07,312.14216157]
[1741337290100,6.9376,144.14,144.07,319.08316157]
[1741337292527,75.60262694,144.15,144.07,0.14216157]
[1741337292926,75.60262694,144.15,144.07,7.08316157]
[1741337293301,75.60262694,144.15,144.07,0.14216157]
[1741337293531,15.46869864,144.14,144.07,0.14216157]
[1741337293837,6.9376,144.14,144.07,0.14216157]
[1741337294007,6.9376,144.14,144.07,7.08316157]
[1741337294329,6.9376,144.14,144.07,319.08316157]
[1741337296041,102.41123737,144.13,144.07,312.0]
[1741337296213,138.20262694,144.12,144.06,0.033]
[1741337296421,94.39443737,144.11,144.06,0.033]
[1741337297520,18.79181043,144.09,144.06,0.033]
[1741337297713,18.79181043,144.07,144.06,0.033]
[1741337298114,145.14362694,144.08,144.06,0.033]
[1741337298421,75.60262694,144.08,144.06,0.033]
[1741337299319,75.60262694,144.08,144.07,0.14216157]
[1741337299523,75.60262694,144.11,144.07,0.14216157]
[1741337300145,82.54132694,144.12,144.07,0.14216157]
[1741337300346,6.4163,144.13,144.08,0.14216157]
[1741337301224,75.60262694,144.14,144.08,0.14216157]
[1741337301643,75.60262694,144.14,144.08,22.20814367]
[1741337302022,75.60262694,144.14,144.08,28.50814367]
[1741337302222,20.29444886,144.16,144.1,22.20814367]
[1741337302223,0.03,144.16,144.1,22.20814367]
[1741337302531,0.03,144.16,144.12,0.14216157]
[1741337303209,0.03,144.16,144.12,312.14216157]
[1741337303545,69.2460389,144.18,144.12,312.14216157]
[1741337304126,65.43337009,144.18,144.12,312.14216157]
[1741337304330,84.22518052,144.17,144.06,101.0197]
[1741337304530,65.43337009,144.16,144.07,28.3659821]
[1741337304725,53.6,144.18,144.11,0.14216157]
[1741337304945,71.67507009,144.19,144.11,0.14216157]
[1741337305445,65.43337009,144.19,144.11,0.14216157]
[1741337305824,71.67527009,144.19,144.11,0.14216157]
[1741337306323,65.43337009,144.18,144.11,7.08086157]
[1741337306743,65.43337009,144.18,144.11,0.14216157]
[1741337306744,71.67557009,144.18,144.11,0.14216157]
[1741337307440,71.67557009,144.18,144.11,312.14216157]
[1741337308122,18.79181043,144.17,144.09,0.14216157]
[1741337308322,18.79181043,144.15,144.05,6.9419]
[1741337308521,18.79181043,144.13,144.05,13.2419]
[1741337308840,18.79181043,144.13,144.07,0.14216157]
[1741337309431,65.43337009,144.12,144.07,0.14216157]
[1741337309923,65.43337009,144.12,144.06,0.17516157]
[1741337310323,6.2452,144.11,144.06,0.17516157]
[1741337310843,6.2452,144.11,144.06,0.033]
[1741337311022,84.22518052,144.1,144.06,0.033]
[1741337311224,152.70520217,144.1,144.06,0.033]
[1741337311423,84.22518052,144.1,144.06,0.033]
[1741337311852,65.43337009,144.1,144.06,0.033]
[1741337312347,71.67927009,144.1,144.06,0.033]
[1741337314725,71.67927009,144.1,144.06,312.033]
[1741337317524,71.67927009,144.1,144.06,0.033]
[1741337317525,89.02661282,144.1,144.06,0.033]
[1741337317725,65.43337009,144.1,144.07,0.14216157]
[1741337318348,65.43337009,144.12,144.07,0.14216157]
[1741337318650,65.43337009,144.12,144.08,0.14216157]
[1741337319054,58.86114458,144.12,144.08,0.14216157]
[1741337320541,58.86114458,144.12,144.09,6.9401]
[1741337320854,58.86114458,144.15,144.1,0.14216157]
[1741337321951,65.33454458,144.18,144.1,22.20814367]
[1741337322134,52.39224193,144.18,144.12,22.20814367]
[1741337322460,53.9878645,144.19,144.12,104.30814367]
[1741337322634,100.53214193,144.2,144.14,0.14216157]
[1741337322834,52.83214193,144.2,144.14,0.14216157]
[1741337323961,52.83214193,144.2,144.13,6.9381]
[1741337323962,0.4399,144.2,144.17,0.14216157]
[1741337324157,0.4399,144.2,144.18,0.14216157]
[1741337324328,18.64964886,144.19,144.17,312.0]
[1741337324532,52.39224193,144.19,144.17,312.0]
[1741337325868,52.39224193,144.19,144.18,0.14216157]
[1741337326743,45.80914706,144.19,144.18,0.14216157]
[1741337329143,45.80914706,144.19,144.15,6.9371]
[1741337329144,45.80914706,144.19,144.16,0.14216157]
[1741337329843,45.80914706,144.19,144.15,0.14216157]
[1741337330244,0.4399,144.2,144.15,0.14216157]
[1741337331055,0.4399,144.2,144.15,7.07916157]
[1741337331568,36.07728104,144.2,144.15,7.07916157]
[1741337331864,0.4399,144.2,144.15,7.07916157]
[1741337332061,6.6813,144.2,144.15,7.07916157]
[1741337332268,46.72977428,144.2,144.17,0.14216157]
[1741337332569,0.4399,144.2,144.17,0.14216157]
[1741337333073,0.03,144.19,144.17,0.14216157]
[1741337334989,58.20039281,144.19,144.17,0.14216157]
[1741337335392,0.03,144.19,144.17,0.14216157]
[1741337335689,0.03,144.19,144.18,23.84554367]
[1741337337177,0.03,144.19,144.18,30.78124367]
[1741337337381,0.4399,144.2,144.19,0.14216157]
[1741337337700,0.4399,144.2,144.19,22.20814367]
[1741337337985,0.03,144.23,144.22,20.14216157]
[1741337338189,0.03,144.23,144.22,130.52814367]
[1741337338492,0.03,144.23,144.22,420.46216157]
[1741337338789,0.03,144.23,144.22,442.52814367]
[1741337339176,0.0001,144.23,144.22,386.1537541]
[1741337339507,0.0001,144.23,144.22,392.4539541]
[1741337339865,0.0001,144.23,144.22,474.5539541]
[1741337340069,0.0001,144.23,144.22,457.55970524]
[1741337340881,0.0001,144.23,144.22,435.2294]
[1741337341277,0.0001,144.23,144.22,457.43754367]
[1741337341481,0.0001,144.23,144.22,476.08719253]
[1741337341683,0.0001,144.23,144.22,476.2293541]
[1741337342198,0.0001,144.23,144.22,457.57970524]
[1741337342398,0.0001,144.23,144.22,457.43754367]
[1741337343780,0.0001,144.23,144.22,400.48216157]
[1741337343994,0.0001,144.23,144.22,400.46216157]
[1741337344301,0.0001,144.23,144.22,400.32]
[1741337344518,0.0001,144.23,144.22,407.39596157]
[1741337344679,0.0001,144.23,144.22,400.46216157]
[1741337345089,0.0001,144.23,144.22,88.353]
[1741337345287,0.0001,144.23,144.22,0.033]
[1741337346900,0.0001,144.23,144.22,20.17516157]
[1741337348006,0.0001,144.23,144.22,332.17516157]
[1741337348785,0.0001,144.23,144.22,339.10896157]
[1741337349905,0.0001,144.23,144.22,27.10896157]
[1741337350105,0.0001,144.23,144.22,49.17494367]
[1741337350503,0.0001,144.23,144.22,131.41710524]
[1741337350682,0.0001,144.23,144.22,109.20896157]
[1741337351083,0.0001,144.23,144.22,102.27516157]
[1741337351508,0.0001,144.23,144.22,0.17516157]